fUSD/lending_fUSD_20260202
["ID","MTS","AMOUNT","RATE_DAILY","PERIOD"]
[404324721,1770060643839,-151.0,0.00014435,2]
[404324722,1770060643850,-181.08010149,0.00014435,2]
[404324723,1770060643859,-217.15233878,0.00014435,2]
[404324725,1770060643868,-301.1433787,0.00014437,2]
[404324728,1770060643878,-416.24077908,0.00014438,2]
[404324729,1770060643887,-868.9,0.00014458,2]
[404324732,1770060643897,-773.23,0.00014513,2]
[404324734,1770060643906,-736.0,0.00014519,2]
[404324736,1770060643915,-501.171316,0.00014521,2]
[404324738,1770060643924,-1000.0,0.00014521,2]
[404324739,1770060643935,-1000.0,0.00014521,2]
[404324740,1770060643946,-1000.0,0.00014521,2]
[404324742,1770060643957,-233.72893135,0.00014521,2]
[404324743,1770060643966,-1000.0,0.00014521,2]
[404324745,1770060643975,-1000.0,0.00014521,2]
[404324746,1770060643984,-723.77841226,0.00014521,2]
[404324747,1770060643995,-1000.0,0.00014521,2]
[404324749,1770060644004,-1000.0,0.00014521,2]
[404324751,1770060644013,-1000.0,0.00014521,2]
[404324752,1770060644023,-545.34481126,0.00014521,2]
[404324753,1770060644034,-1000.0,0.00014521,2]
[404324754,1770060644044,-548.87500636,0.00014521,2]
[404324755,1770060644053,-1000.0,0.00014521,2]
[404324756,1770060644062,-156.95111861,0.00014521,2]
[404324757,1770060644072,-1000.0,0.00014521,2]
[404324758,1770060644084,-1000.0,0.00014521,2]
[404324759,1770060644093,-543.53042842,0.00014521,2]
[404324760,1770060644103,-1000.0,0.00014521,2]
[404324761,1770060644115,-1000.0,0.00014521,2]
[404324762,1770060644126,-911.8365552,0.00014521,2]
[404324763,1770060644136,-546.2635897,0.00014521,2]
[404324764,1770060644148,-1000.0,0.00014521,2]
[404324765,1770060644158,-152.81544497,0.00014521,2]
[404324766,1770060644168,-57709.19420285,0.0001455,2]
[404324767,1770060644179,-250.0,0.00014565,2]
[404324768,1770060644191,-458.51,0.00014626,2]
[404324769,1770060644200,-500.0,0.00014636,2]
[404324770,1770060644210,-3292.0,0.00014706,2]
[404324771,1770060644219,-868.9,0.00014732,2]
[404324772,1770060644230,-773.23,0.00014787,2]
[404324773,1770060644243,-500.0,0.00014895,2]
[404324774,1770060644252,-179.5507367,0.000149,2]
[404324775,1770060644262,-458.51,0.000149,2]
[404324776,1770060644272,-250.20103246,0.0001491,2]
[404324777,1770060644282,-1208.08524459,0.00014919,2]
[404324778,1770060644292,-1536.04360649,0.00014983,2]
[404324779,1770060644302,-230.16041742,0.00014983,2]
[404324780,1770060644312,-187.78006525,0.00014983,2]
[404324781,1770060644322,-225.18697532,0.00014983,2]
[404324782,1770060644331,-1186.16205934,0.00015,2]
[404324783,1770060644341,-2140.76085253,0.00015,14]
[404324784,1770060644350,-6770.64481546,0.00015,2]
[404324785,1770060644359,-367598.6231793,0.00015,3]
[404324786,1770060644369,-29378.89718232,0.00015,2]
[404324787,1770060644378,-418.0702292,0.00015,2]
[404324788,1770060644387,-988.5,0.00015006,2]
[404324789,1770060644397,-773.23,0.00015061,2]
[404324790,1770060644406,-1006.79391477,0.00015068,2]
[404324791,1770060644415,-582.73923754,0.00015068,2]
[404324792,1770060644425,-1500.0,0.00015068,2]
[404324793,1770060644434,-1500.0,0.00015068,2]
[404324794,1770060644443,-617.67942522,0.00015068,2]
[404324795,1770060644453,-1500.0,0.00015068,2]
[404324796,1770060644462,-1374.07848669,0.00015068,2]
[404324797,1770060644471,-1500.0,0.00015068,2]
[404324798,1770060644481,-523.62775042,0.00015068,2]
[404324799,1770060644492,-1500.0,0.00015068,2]
[404324800,1770060644501,-1500.0,0.00015068,2]
[404324801,1770060644510,-1506.04407484,0.00015068,2]
[404324802,1770060644519,-1500.0,0.00015068,2]
[404324803,1770060644529,-1500.0,0.00015068,2]
[404324804,1770060644538,-1500.0,0.00015068,2]
[404324805,1770060644547,-389.0,0.00015072,2]
[404324806,1770060644556,-434.32,0.00015146,2]
[404324807,1770060644565,-57709.19420285,0.00015146,2]
[404324808,1770060644574,-458.51,0.00015174,2]
[404324809,1770060644583,-500.0,0.00015205,2]
[404324810,1770060644594,-389.0,0.00015206,2]
[404324811,1770060644603,-1000.0,0.00015252,2]
[404324812,1770060644612,-334.5472959,0.00015256,2]
[404324813,1770060644621,-181.63,0.00015259,2]
[404324814,1770060644631,-1000.0,0.00015299,2]
[404324815,1770060644640,-1517.64,0.000153,2]
[404324816,1770060644649,-508.63384765,0.000154,2]
[404324817,1770060644658,-500.0,0.00015443,2]
[404324818,1770060644667,-458.51,0.00015448,2]
[404324819,1770060644676,-270.94,0.00015455,2]
[404324820,1770060644685,-561.99539873,0.00015472,2]
[404324821,1770060644695,-500.0,0.00015473,2]
[404324822,1770060644704,-500.63586771,0.00015473,2]
[404324823,1770060644713,-500.0,0.00015473,2]
[404324824,1770060644722,-522.30858015,0.00015473,2]
[404324825,1770060644731,-161.45537985,0.00015473,2]
[404324826,1770060644741,-500.6120606,0.00015473,2]
[404324827,1770060644750,-500.0,0.00015473,2]
[404324828,1770060644760,-500.62768041,0.00015473,2]
[404324829,1770060644769,-163.12661798,0.00015473,2]
[404324830,1770060644778,-500.46237197,0.00015473,2]
[404324831,1770060644788,-163.34993731,0.00015473,2]
[404324832,1770060644799,-200.70028911,0.00015473,2]
[404324833,1770060644808,-500.0,0.00015473,2]
[404324834,1770060644818,-500.0,0.00015473,2]
[404324835,1770060644829,-500.0,0.00015473,2]
[404324836,1770060644893,-464.35211832,0.00015473,2]
[404324837,1770060644904,-500.0,0.00015473,2]
[404324838,1770060644915,-500.40906893,0.00015473,2]
[404324839,1770060644924,-151.07783782,0.00015473,2]
[404324840,1770060644933,-500.0,0.00015473,2]
[404324841,1770060644942,-500.0,0.00015473,2]
[404324842,1770060644952,-512.94754167,0.00015473,2]
[404324843,1770060644961,-160.54295648,0.00015473,2]
[404324844,1770060644970,-500.0,0.00015473,2]
[404324845,1770060644979,-500.0,0.00015473,2]
[404324846,1770060644988,-574.06272579,0.00015473,2]
[404324847,1770060644999,-500.0,0.00015473,2]
[404324848,1770060645009,-500.0,0.00015473,2]
[404324849,1770060645018,-500.0,0.00015473,2]
[404324850,1770060645027,-500.0,0.00015473,2]
[404324851,1770060645036,-500.0,0.00015473,2]
[404324852,1770060645046,-160.21125151,0.00015473,2]
[404324853,1770060645055,-340.09137446,0.00015473,2]
[404324854,1770060645065,-500.0,0.00015473,2]
[404324855,1770060645075,-559.67308476,0.00015473,2]
[404324856,1770060645085,-500.0,0.00015473,2]
[404324857,1770060645095,-500.0,0.00015473,2]
[404324858,1770060645105,-500.41005015,0.00015473,2]
[404324859,1770060645115,-160.61738464,0.00015473,2]
[404324860,1770060645126,-163.46067997,0.00015473,2]
[404324861,1770060645136,-500.0,0.00015473,2]
[404324862,1770060645146,-500.0,0.00015473,2]
[404324863,1770060645157,-500.0,0.00015473,2]
[404324864,1770060645166,-500.0,0.00015473,2]
[404324865,1770060645176,-500.0,0.00015473,2]
[404324866,1770060645189,-500.0,0.00015473,2]
[404324867,1770060645199,-500.0,0.00015473,2]
[404324868,1770060645207,-500.0,0.00015473,2]
[404324869,1770060645217,-500.0,0.00015473,2]
[404324870,1770060645227,-500.0,0.00015473,2]
[404324871,1770060645242,-565.00011393,0.00015473,2]
[404324872,1770060645251,-558.47394043,0.00015473,2]
[404324873,1770060645262,-500.0,0.00015473,2]
[404324874,1770060645271,-500.0,0.00015473,2]
[404324875,1770060645281,-500.0,0.00015473,2]
[404324876,1770060645290,-500.0,0.00015473,2]
[404324877,1770060645300,-500.0,0.00015473,2]
[404324878,1770060645309,-336.43827265,0.00015473,2]
[404324879,1770060645319,-500.0,0.00015473,2]
[404324880,1770060645328,-500.0,0.00015473,2]
[404324881,1770060645339,-500.0,0.00015473,2]
[404324882,1770060645348,-500.0,0.00015473,2]
[404324883,1770060645358,-500.0,0.00015473,2]
[404324884,1770060645367,-500.0,0.00015473,2]
[404324885,1770060645376,-500.0,0.00015473,2]
[404324886,1770060645385,-185.46503654,0.00015473,2]
[404324887,1770060645395,-500.0,0.00015473,2]
[404324888,1770060645404,-500.0,0.00015473,2]
[404324889,1770060645413,-500.0,0.00015473,2]
[404324890,1770060645422,-593.37800921,0.00015473,2]
[404324891,1770060645431,-500.0,0.00015473,2]
[404324892,1770060645441,-500.0,0.00015473,2]
[404324893,1770060645450,-550.09529227,0.00015473,2]
[404324894,1770060645459,-500.0,0.00015473,2]
[404324895,1770060645469,-748.74,0.00015499,2]
[404324896,1770060645478,-1269.29,0.00015499,2]
[404324897,1770060645488,-849.11,0.00015499,2]
[404324898,1770060645498,-98441.87394799,0.000155,2]
[404324899,1770060645507,-1592.87721993,0.00015531,2]
[404324900,1770060645517,-194.72792766,0.00015531,2]
[404324901,1770060645528,-233.51889341,0.00015531,2]
[404324902,1770060645540,-159.60859955,0.00015545,2]
[404324903,1770060645549,-181.60743456,0.00015588,2]
[404324904,1770060645559,-2000.0,0.00015616,2]
[404324905,1770060645571,-1002.17701724,0.00015616,2]
[404324906,1770060645580,-1327.96194417,0.00015616,2]
[404324907,1770060645590,-1480.68897,0.00015616,2]
[404324908,1770060645600,-2000.0,0.00015616,2]
[404324909,1770060645611,-2000.0,0.00015616,2]
[404324910,1770060645622,-2000.0,0.00015616,2]
[404324911,1770060645631,-973.78998774,0.00015616,2]
[404324912,1770060645642,-1516.11872749,0.00015616,2]
[404324913,1770060645652,-458.51,0.00015722,2]
[404324914,1770060645661,-2800.26,0.00015725,2]
[404324915,1770060645673,-1600.0,0.00015729,2]
[404324916,1770060645682,-57709.19420285,0.00015742,2]
[404324917,1770060645692,-389.0,0.00015784,2]
[404324918,1770060645701,-228.49,0.00015875,2]
[404324919,1770060645711,-1252.0,0.00015901,2]
[404324920,1770060645720,-360.21,0.00015937,2]
[404324921,1770060645731,-5000.0,0.0001596,2]
[404324922,1770060645741,-614.7551553,0.0001599,2]
[404324923,1770060645751,-500.0,0.00015991,2]
[404324924,1770060645760,-458.51,0.00015996,2]
[404324925,1770060645770,-151.0,0.00015997,2]
[404324926,1770060645779,-956.83032625,0.00016,2]
[404324927,1770060645790,-270.91542523,0.00016,2]
[404324928,1770060645801,-421.15115649,0.00016,2]
[404324929,1770060645811,-2746696.33223117,0.00016,4]
[404324930,1770060645822,-200.896366,0.00016,2]
[404324932,1770060645831,-500.0,0.00016021,2]
[404324934,1770060645841,-960.71724918,0.00016021,2]
[404324935,1770060645851,-500.0,0.00016021,2]
[404324936,1770060645861,-500.0,0.00016021,2]
[404324937,1770060645870,-500.0,0.00016021,2]
[404324938,1770060645880,-486.90150068,0.00016021,2]
[404324940,1770060645889,-500.0,0.00016021,2]
[404324942,1770060645898,-487.41342802,0.00016021,2]
[404324944,1770060645907,-503.70343212,0.00016021,2]
[404324945,1770060645916,-500.0,0.00016021,2]
[404324946,1770060645925,-1000.0,0.00016021,2]
[404324947,1770060645933,-500.0,0.00016021,2]
[404324948,1770060645942,-500.0,0.00016021,2]
[404324949,1770060645952,-752.19444213,0.00016021,2]
[404324950,1770060645961,-500.0,0.00016021,2]
[404324951,1770060645970,-1000.0,0.00016021,2]
[404324952,1770060645979,-500.0,0.00016021,2]
[404324953,1770060645987,-500.0,0.00016021,2]
[404324954,1770060645997,-1000.0,0.00016021,2]
[404324955,1770060646006,-1000.0,0.00016021,2]
[404324956,1770060646015,-1000.0,0.00016021,2]
[404324957,1770060646024,-1000.0,0.00016021,2]
[404324958,1770060646033,-501.28378078,0.00016021,2]
[404324959,1770060646042,-1000.0,0.00016021,2]
[404324960,1770060646051,-504.20951303,0.00016021,2]
[404324961,1770060646060,-191.30611065,0.00016021,2]
[404324962,1770060646069,-1000.0,0.00016021,2]
[404324963,1770060646078,-500.0,0.00016021,2]
[404324964,1770060646087,-1000.0,0.00016021,2]
[404324966,1770060646096,-500.0,0.00016021,2]
[404324967,1770060646105,-500.0,0.00016021,2]
[404324968,1770060646114,-1000.0,0.00016021,2]
[404324969,1770060646123,-1000.0,0.00016021,2]
[404324970,1770060646132,-500.0,0.00016021,2]
[404324971,1770060646142,-908.63714551,0.00016021,2]
[404324972,1770060646151,-1000.0,0.00016021,2]
[404324973,1770060646159,-1651.81367706,0.00016079,2]
[404324974,1770060646168,-201.93286099,0.00016079,2]
[404324975,1770060646177,-242.15909246,0.00016079,2]
[404324976,1770060646189,-9999.99,0.00016116,2]
[404324977,1770060646198,-2500.0,0.00016164,2]
[404324978,1770060646207,-2500.0,0.00016164,2]
[404324979,1770060646216,-2500.0,0.00016164,2]
[404324980,1770060646227,-812.26829567,0.00016164,2]
[404324981,1770060646237,-4609.0,0.00016177,2]
[404324982,1770060646247,-151.0,0.00016197,2]
[404324983,1770060646257,-114549.12794274,0.000162,5]
[404324984,1770060646266,-458.51,0.0001627,2]
[404324985,1770060646275,-159.60859955,0.00016322,2]
[404324986,1770060646284,-500.0,0.00016329,2]
[404324987,1770060646293,-57709.19420285,0.00016338,2]
[404324988,1770060646303,-200.0,0.0001634,2]
[404324989,1770060646312,-1894.56667805,0.00016438,2]
[404324990,1770060646321,-500.0,0.00016438,2]
[404324991,1770060646330,-500.0,0.00016438,2]
[404324992,1770060646339,-500.0,0.00016438,2]
[404324993,1770060646349,-500.0,0.00016438,2]
[404324994,1770060646359,-500.0,0.00016438,2]
[404324995,1770060646368,-500.0,0.00016438,2]
[404324996,1770060646377,-500.0,0.00016438,2]
[404324997,1770060646388,-500.0,0.00016438,2]
[404324998,1770060646397,-500.0,0.00016438,2]
[404324999,1770060646408,-500.0,0.00016438,2]
[404325000,1770060646418,-500.0,0.00016438,2]
[404325001,1770060646428,-500.0,0.00016438,2]
[404325002,1770060646438,-500.0,0.00016438,2]
[404325003,1770060646448,-500.0,0.00016438,2]
[404325004,1770060646458,-500.0,0.00016438,2]
[404325005,1770060646467,-500.0,0.00016438,2]
[404325006,1770060646477,-500.0,0.00016438,2]
[404325007,1770060646486,-500.0,0.00016438,2]
[404325008,1770060646497,-500.0,0.00016438,2]
[404325009,1770060646506,-519.63978861,0.00016438,2]
[404325010,1770060646515,-500.0,0.00016438,2]
[404325011,1770060646524,-500.0,0.00016438,2]
[404325012,1770060646533,-500.0,0.00016438,2]
[404325013,1770060646544,-500.0,0.00016438,2]
[404325014,1770060646555,-500.0,0.00016438,2]
[404325015,1770060646563,-500.0,0.00016438,2]
[404325016,1770060646572,-500.0,0.00016438,2]
[404325017,1770060646583,-500.0,0.00016438,2]
[404325018,1770060646593,-500.0,0.00016438,2]
[404325019,1770060646603,-500.0,0.00016438,2]
[404325020,1770060646614,-500.0,0.00016438,2]
[404325021,1770060646624,-500.0,0.00016438,2]
[404325022,1770060646635,-500.0,0.00016438,2]
[404325023,1770060646645,-500.0,0.00016438,2]
[404325024,1770060646655,-500.0,0.00016438,2]
[404325025,1770060646666,-500.0,0.00016438,2]
[404325026,1770060646677,-500.0,0.00016438,2]
[404325027,1770060646687,-500.0,0.00016438,2]
[404325028,1770060646697,-500.0,0.00016438,2]
[404325029,1770060646707,-500.0,0.00016438,2]
[404325030,1770060646717,-500.0,0.00016438,2]
[404325031,1770060646727,-500.0,0.00016438,2]
[404325032,1770060646737,-500.0,0.00016438,2]
[404325033,1770060646747,-500.0,0.00016438,2]
[404325034,1770060646757,-500.0,0.00016438,2]
[404325035,1770060646767,-500.0,0.00016438,2]
[404325036,1770060646779,-500.0,0.00016438,2]
[404325037,1770060646789,-500.0,0.00016438,2]
[404325038,1770060646799,-500.0,0.00016438,2]
[404325040,1770060646808,-500.0,0.00016438,2]
[404325042,1770060646817,-500.0,0.00016438,2]
[404325044,1770060646827,-1864.94494518,0.00016438,2]
[404325046,1770060646836,-1864.94494518,0.00016438,2]
[404325048,1770060646845,-1864.94494518,0.00016438,2]
[404325049,1770060646854,-1864.94494518,0.00016438,2]
[404325051,1770060646863,-1864.94494518,0.00016438,2]
[404325053,1770060646872,-1864.94494518,0.00016438,2]
[404325055,1770060646881,-1864.94494518,0.00016438,2]
[404325057,1770060646890,-1864.94494518,0.00016438,2]
[404325059,1770060646899,-1864.94494518,0.00016438,2]
[404325061,1770060646908,-1864.94494518,0.00016438,2]
[404325063,1770060646917,-1864.94494518,0.00016438,2]
[404325065,1770060646925,-1864.94494518,0.00016438,2]
[404325067,1770060646934,-1864.94494518,0.00016438,2]
[404325069,1770060646943,-1864.94494518,0.00016438,2]
[404325071,1770060646952,-1864.94494518,0.00016438,2]
[404325073,1770060646961,-1864.94494518,0.00016438,2]
[404325075,1770060646970,-1864.94494518,0.00016438,2]
[404325077,1770060646979,-1864.94494518,0.00016438,2]
[404325079,1770060646987,-1864.94494518,0.00016438,2]
[404325081,1770060646998,-1864.94494518,0.00016438,2]
[404325082,1770060647007,-1864.94494518,0.00016438,2]
[404325084,1770060647016,-1864.94494518,0.00016438,2]
[404325085,1770060647025,-1864.94494518,0.00016438,2]
[404325086,1770060647034,-1864.94494518,0.00016438,2]
[404325087,1770060647043,-1864.94494518,0.00016438,2]
[404325088,1770060647055,-1864.94494518,0.00016438,2]
[404325089,1770060647065,-1864.94494518,0.00016438,2]
[404325090,1770060647074,-1864.94494518,0.00016438,2]
[404325091,1770060647083,-1864.94494518,0.00016438,2]
[404325092,1770060647093,-1864.94494518,0.00016438,2]
[404325093,1770060647102,-1864.94494518,0.00016438,2]
[404325094,1770060647111,-1864.94494518,0.00016438,2]
[404325095,1770060647120,-1864.94494518,0.00016438,2]
[404325096,1770060647129,-1864.94494518,0.00016438,2]
[404325097,1770060647139,-1864.94494518,0.00016438,2]
[404325098,1770060647147,-1864.94494518,0.00016438,2]
[404325099,1770060647156,-1864.94494518,0.00016438,2]
[404325100,1770060647166,-1864.94494518,0.00016438,2]
[404325101,1770060647175,-718.43917855,0.00016438,2]
[404325102,1770060647185,-1725.59276534,0.00016444,2]
[404325103,1770060647196,-150.0,0.00016473,2]
[404325104,1770060647205,-434.32,0.00016477,2]
[404325105,1770060647214,-271.93387854,0.00016478,2]
[404325106,1770060647223,-500.0,0.00016539,2]
[404325107,1770060647234,-458.51,0.00016544,2]
[404325108,1770060647244,-501.04497332,0.00016568,2]
[404325109,1770060647254,-1001.43163729,0.00016568,2]
[404325110,1770060647264,-385.68955508,0.00016568,2]
[404325111,1770060647274,-503.30357537,0.00016568,2]
[404325112,1770060647283,-1500.0,0.00016568,2]
[404325113,1770060647293,-1000.0,0.00016568,2]
[404325114,1770060647302,-1500.0,0.00016568,2]
[404325115,1770060647312,-503.56470175,0.00016568,2]
[404325116,1770060647321,-786.79524139,0.00016576,2]
[404325117,1770060647331,-181.63,0.00016576,2]
[404325118,1770060647341,-360.77468192,0.000166,2]
[404325119,1770060647350,-346.92554585,0.00016625,2]
[404325120,1770060647360,-747.8093786,0.00016626,2]
[404325121,1770060647369,-599.60298507,0.00016626,2]
[404325122,1770060647379,-1712.93078312,0.00016627,2]
[404325123,1770060647389,-209.40437684,0.00016627,2]
[404325124,1770060647398,-251.11897888,0.00016627,2]
[404325125,1770060647408,-1000.0,0.00016649,2]
[404325126,1770060647418,-3000.0,0.00016712,2]
[404325127,1770060647429,-1000.0,0.00016712,2]
[404325128,1770060647440,-165.79,0.00016712,2]
[404325129,1770060647450,-831.0,0.0001672,2]
[404325130,1770060647460,-3869.839,0.00016805,2]
[404325131,1770060647472,-324.744,0.00016805,2]
[404325132,1770060647482,-458.66755852,0.00016818,2]
[404325133,1770060647494,-500.0,0.00016857,2]
[404325134,1770060647504,-2377.0,0.000169,5]
[404325135,1770060647514,-16763.1750962,0.00016908,2]
[404325136,1770060647524,-421.88469562,0.00016908,2]
[404325137,1770060647534,-748.74,0.00016939,2]
[404325138,1770060647543,-1269.29,0.00016939,2]
[404325139,1770060647553,-849.11,0.00016939,2]
[404325140,1770060647562,-200.0,0.00016983,2]
[404325141,1770060647572,-500.0,0.00017,5]
[404325142,1770060647582,-500.0,0.00017,2]
[404325143,1770060647593,-500.0,0.00017,2]
[404325144,1770060647603,-934037.61908316,0.00017,2]
[404325145,1770060647613,-300.0,0.00017021,2]
[404325146,1770060647622,-5888.0,0.0001705,2]
[404325147,1770060647632,-294.0,0.00017082,2]
[404325148,1770060647641,-500.0,0.00017087,2]
[404325149,1770060647651,-159.60859955,0.00017099,2]
[404325150,1770060647663,-1672.44734327,0.00017116,2]
[404325151,1770060647672,-1776.30922209,0.00017175,2]
[404325152,1770060647683,-217.15233878,0.00017175,2]
[404325153,1770060647693,-260.4103811,0.00017175,2]
[404325154,1770060647703,-368.0,0.00017257,2]
[404325155,1770060647714,-3500.0,0.0001726,2]
[404325156,1770060647723,-1000.0,0.0001726,2]
[404325157,1770060647733,-559.71,0.00017292,2]
[404325158,1770060647745,-559.85,0.00017292,2]
[404325159,1770060647755,-500.0,0.0001737,2]
[404325160,1770060647764,-2508.0,0.000174,2]
[404325161,1770060647774,-896.0,0.00017405,2]
[404325162,1770060647784,-456.0,0.0001745,2]
[404325163,1770060647795,-165.62377034,0.00017468,2]
[404325164,1770060647805,-1600.0,0.00017477,2]
[404325165,1770060647814,-13442.50995431,0.000175,2]
[404325166,1770060647824,-4478.0,0.00017522,2]
[404325167,1770060647834,-1000.0,0.00017534,2]
[404325168,1770060647843,-450.0,0.00017568,2]
[404325169,1770060647852,-4478.0,0.00017581,2]
[404325170,1770060647864,-900.0,0.000176,6]
[404325171,1770060647874,-5888.0,0.00017608,2]
[404325172,1770060647883,-500.0,0.00017635,2]
[404325173,1770060647894,-1062.68609997,0.0001764,2]
[404325174,1770060647904,-500.0,0.00017699,2]
[404325175,1770060647914,-469.0,0.00017699,2]
[404325176,1770060647923,-500.0,0.00017699,2]
[404325177,1770060647933,-500.0,0.00017699,2]
[404325178,1770060647944,-500.0,0.00017699,2]
[404325179,1770060647955,-1554.0,0.00017699,2]
[404325180,1770060647965,-150.0,0.00017699,2]
[404325181,1770060647974,-150.0,0.00017699,2]
[404325182,1770060647984,-672.0,0.00017699,2]
[404325183,1770060647995,-150.0,0.00017699,2]
[404325184,1770060648004,-500.0,0.00017699,2]
[404325185,1770060648013,-500.0,0.00017699,2]
[404325186,1770060648022,-500.0,0.00017699,2]
[404325187,1770060648033,-500.0,0.00017699,2]
[404325188,1770060648043,-643.0,0.00017699,2]
[404325189,1770060648054,-150.0,0.00017699,2]
[404325190,1770060648064,-500.0,0.00017699,2]
[404325191,1770060648074,-150.0,0.00017699,2]
[404325192,1770060648086,-150.27829964,0.00017699,2]
[404325193,1770060648097,-1113.0,0.00017699,2]
[404325194,1770060648108,-500.0,0.00017699,2]
[404325195,1770060648119,-150.0,0.00017699,2]
[404325196,1770060648128,-900.0,0.000177,6]
[404325197,1770060648139,-1842.03266331,0.00017723,2]
[404325198,1770060648149,-225.18697532,0.00017723,2]
[404325199,1770060648160,-270.0455652,0.00017723,2]
[404325200,1770060648169,-4478.0,0.00017729,2]
[404325201,1770060648179,-4478.0,0.00017745,2]
[404325202,1770060648193,-500.0,0.00017754,2]
[404325203,1770060648203,-469.0,0.00017754,2]
[404325204,1770060648213,-500.0,0.00017754,2]
[404325205,1770060648224,-500.0,0.00017754,2]
[404325206,1770060648237,-1554.0,0.00017754,2]
[404325207,1770060648247,-500.0,0.00017754,2]
[404325208,1770060648258,-150.0,0.00017754,2]
[404325209,1770060648268,-672.0,0.00017754,2]
[404325210,1770060648277,-500.0,0.00017754,2]
[404325211,1770060648287,-500.0,0.00017754,2]
[404325212,1770060648296,-500.0,0.00017754,2]
[404325213,1770060648306,-500.0,0.00017754,2]
[404325214,1770060648315,-643.0,0.00017754,2]
[404325215,1770060648325,-500.0,0.00017754,2]
[404325216,1770060648335,-206.01499169,0.00017754,2]
[404325217,1770060648344,-1113.0,0.00017754,2]
[404325218,1770060648354,-500.0,0.00017754,2]
[404325219,1770060648363,-235.57065382,0.00017754,2]
[404325220,1770060648374,-6453.0,0.00017794,2]
[404325221,1770060648384,-2616.0,0.00017795,2]
[404325222,1770060648394,-502.14782899,0.000178,3]
[404325223,1770060648404,-900.0,0.000178,6]
[404325224,1770060648413,-150.0,0.00017808,2]
[404325225,1770060648425,-2165.35985631,0.00017808,2]
[404325226,1770060648435,-1000.0,0.00017808,2]
[404325227,1770060648444,-627.9058201,0.00017809,2]
[404325228,1770060648455,-469.0,0.00017809,2]
[404325229,1770060648467,-500.0,0.00017809,2]
[404325230,1770060648477,-1554.0,0.00017809,2]
[404325231,1770060648487,-500.0,0.00017809,2]
[404325232,1770060648497,-500.0,0.00017809,2]
[404325233,1770060648506,-150.0,0.00017809,2]
[404325234,1770060648516,-672.0,0.00017809,2]
[404325235,1770060648526,-500.0,0.00017809,2]
[404325236,1770060648535,-500.0,0.00017809,2]
[404325237,1770060648544,-500.0,0.00017809,2]
[404325238,1770060648554,-500.0,0.00017809,2]
[404325239,1770060648564,-643.0,0.00017809,2]
[404325240,1770060648573,-406.45210639,0.00017809,2]
[404325241,1770060648586,-1113.0,0.00017809,2]
[404325242,1770060648598,-500.0,0.00017809,2]
[404325243,1770060648607,-2000.0,0.0001782,2]
[404325244,1770060648616,-2000.0,0.0001782,2]
[404325245,1770060648626,-289.55,0.00017839,2]
[404325246,1770060648637,-200.0,0.00017856,2]
[404325247,1770060648648,-150.0,0.00017863,2]
[404325248,1770060648658,-469.0,0.00017863,2]
[404325249,1770060648668,-500.0,0.00017863,2]
[404325250,1770060648678,-1554.0,0.00017863,2]
[404325251,1770060648688,-500.0,0.00017863,2]
[404325252,1770060648698,-500.0,0.00017863,2]
[404325253,1770060648707,-150.0,0.00017863,2]
[404325254,1770060648717,-672.0,0.00017863,2]
[404325255,1770060648729,-500.0,0.00017863,2]
[404325256,1770060648740,-412.59942725,0.00017863,2]
[404325257,1770060648750,-500.0,0.00017863,2]
[404325258,1770060648759,-500.0,0.00017863,2]
[404325259,1770060648769,-643.0,0.00017863,2]
[404325260,1770060648779,-1113.0,0.00017863,2]